[Event "NJSK 2018 Jeugd C"]
[Site "Assen, Netherlands"]
[Date "2018.05.03"]
[Round "7.8"]
[White "Cchung, Nyuk Lyn"]
[Black "Labruyere, Roger"]
[Result "1/2-1/2"]
[TimeControl "40/90m+30sec/move"]
[WhiteElo "1796"]
[BlackElo "1665"]

1. e4 {[%clk 01:30:56]} {[%emt 00:00:02]} c6 {[%clk 01:30:55]} {[%emt
00:00:07]} 2. d4 {[%clk 01:31:20]} {[%emt 00:00:05]} d5 {[%clk 01:31:22]}
{[%emt 00:00:03]} 3. Nc3 {[%clk 01:31:42]} {[%emt 00:00:07]} dxe4 {[%clk
01:31:51]} {[%emt 00:00:03]} 4. Nxe4 {[%clk 01:32:10]} {[%emt 00:00:01]} Bf5
{[%clk 01:32:20]} 5. Ng3 {[%clk 01:32:39]} {[%emt 00:00:02]} Bg6 {[%clk
01:32:49]} 6. h4 {[%clk 01:33:07]} {[%emt 00:00:02]} h6 {[%clk 01:33:19]}
{[%emt 00:00:01]} 7. Nf3 {[%clk 01:33:36]} {[%emt 00:00:01]} Nd7 {[%clk
01:33:48]} 8. h5 {[%clk 01:34:04]} {[%emt 00:00:01]} Bh7 {[%clk 01:34:18]} 9.
Bd3 {[%clk 01:34:33]} {[%emt 00:00:01]} Bxd3 {[%clk 00:59:26]} {[%emt
00:00:02]} 10. Qxd3 {[%clk 01:35:01]} {[%emt 00:00:01]} e6 {[%clk 01:34:49]}
{[%emt 00:00:29]} 11. Bd2 {[%clk 01:35:21]} {[%emt 00:00:09]} Qc7 {[%clk
01:35:17]} {[%emt 00:00:02]} 12. O-O-O {[%clk 01:35:40]} {[%emt 00:00:10]}
O-O-O {[%clk 01:35:45]} {[%emt 00:00:03]} 13. Kb1 {[%clk 01:36:01]} {[%emt
00:00:09]} Ngf6 {[%clk 01:36:11]} {[%emt 00:00:04]} 14. Ne4 {[%clk 01:36:11]}
{[%emt 00:00:18]} Nxe4 {[%clk 01:36:38]} {[%emt 00:00:05]} 15. Qxe4 {[%clk
01:36:35]} {[%emt 00:00:06]} Nf6 {[%clk 01:37:06]} {[%emt 00:00:02]} 16. Qe2
{[%clk 01:36:56]} {[%emt 00:00:09]} Bd6 {[%clk 01:36:11]} {[%emt 00:01:26]} 17.
c4 {[%clk 01:37:08]} {[%emt 00:00:17]} c5 {[%clk 01:36:11]} {[%emt 00:00:31]}
18. Bc3 {[%clk 01:37:29]} {[%emt 00:00:09]} Qe7 {[%clk 01:35:05]} {[%emt
00:01:36]} 19. Ne5 {[%clk 01:34:21]} {[%emt 00:03:37]} Nd7 {[%clk 01:33:44]}
{[%emt 00:01:51]} 20. Nxd7 {[%clk 01:26:41]} {[%emt 00:08:11]} Rxd7 {[%clk
01:33:50]} {[%emt 00:00:23]} 21. dxc5 {[%clk 01:25:40]} {[%emt 00:01:31]} Bxc5
{[%clk 01:34:02]} {[%emt 00:00:18]} 22. Bxg7 {[%clk 01:25:17]} {[%emt
00:00:53]} Rg8 {[%clk 01:29:50]} {[%emt 00:04:41]} 23. Bxh6 {[%clk 01:23:24]}
{[%emt 00:02:24]} Rxg2 {[%clk 01:29:52]} {[%emt 00:00:28]} 24. Be3 {[%clk
01:23:23]} {[%emt 00:00:31]} Bxe3 {[%clk 01:13:33]} {[%emt 00:16:47]} 25. Qxe3
{[%clk 01:14:13]} {[%emt 00:09:42]} Rh2 {[%clk 01:06:55]} {[%emt 00:07:08]} 26.
Rxh2 {[%clk 01:02:30]} {[%emt 00:12:13]} Rxd1+ {[%clk 01:07:18]} {[%emt
00:00:07]} 27. Kc2 {[%clk 01:02:53]} {[%emt 00:00:06]} Qd6 {[%clk 01:04:19]}
{[%emt 00:03:29]} 28. f4 {[%clk 01:02:47]} {[%emt 00:00:36]} Rf1 {[%clk
01:04:05]} {[%emt 00:00:44]} 29. Rd2 {[%clk 00:48:22]} {[%emt 00:14:55]} Qc7
{[%clk 00:58:44]} {[%emt 00:05:51]} 30. Qd4 {[%clk 00:43:56]} {[%emt 00:04:56]}
b5 {[%clk 00:57:02]} {[%emt 00:02:12]} 31. Qe4 {[%clk 00:35:34]} {[%emt
00:08:51]} Kb8 {[%clk 00:53:55]} {[%emt 00:03:38]} 32. Rg2 {[%clk 00:28:23]}
{[%emt 00:07:40]} Qxf4 {[%clk 00:46:45]} {[%emt 00:07:40]} 33. Qxf4+ {[%clk
00:20:44]} {[%emt 00:08:09]} Rxf4 {[%clk 00:46:56]} {[%emt 00:00:18]} 34. Rh2
{[%clk 00:18:02]} {[%emt 00:03:12]} Rxc4+ {[%clk 00:44:50]} {[%emt 00:02:36]}
35. Kb3 {[%clk 00:16:48]} {[%emt 00:01:44]} Kb7 {[%clk 00:40:40]} {[%emt
00:04:40]} 36. h6 {[%clk 00:15:43]} {[%emt 00:01:34]} Rc8 {[%clk 00:39:49]}
{[%emt 00:01:22]} 37. h7 {[%clk 00:15:06]} {[%emt 00:01:07]} Rh8 {[%clk
00:40:10]} {[%emt 00:00:08]} 38. Rh5 {[%clk 00:15:19]} {[%emt 00:00:17]} Kb6
{[%clk 00:39:24]} {[%emt 00:01:17]} 39. Kc3 {[%clk 00:15:28]} {[%emt 00:00:20]}
Kc6 {[%clk 00:36:30]} {[%emt 00:03:25]} 40. Kd4 {[%clk 00:15:53]} {[%emt
00:00:05]} Kd6 {[%clk 00:36:40]} {[%emt 00:00:19]} 41. b4 {[%clk 00:14:04]}
{[%emt 00:02:19]} f6 {[%clk 00:35:36]} {[%emt 00:01:35]} 42. Ke4 {[%clk
00:12:47]} {[%emt 00:01:48]} a6 {[%clk 00:32:20]} {[%emt 00:03:45]} 43. Kd4
{[%clk 00:09:10]} {[%emt 00:04:06]} f5 {[%clk 00:28:58]} {[%emt 00:03:52]} 44.
Rh6 {[%clk 00:09:17]} {[%emt 00:00:24]} Ke7 {[%clk 00:17:06]} {[%emt 00:12:22]}
45. Ke5 {[%clk 00:09:30]} {[%emt 00:00:17]} Kf7 {[%clk 00:17:09]} {[%emt
00:00:26]} 46. a3 {[%clk 00:09:06]} {[%emt 00:00:54]} Kg7 {[%clk 00:16:00]}
{[%emt 00:01:39]} 47. Rxe6 {[%clk 00:09:15]} {[%emt 00:00:21]} Kxh7 {[%clk
00:14:37]} {[%emt 00:01:53]} 48. Rxa6 {[%clk 00:08:44]} {[%emt 00:01:00]} Rf8
{[%clk 00:13:33]} {[%emt 00:01:34]} 49. Kf4 {[%clk 00:08:44]} {[%emt 00:00:30]}
Kg7 {[%clk 00:10:24]} {[%emt 00:03:39]} 50. Ra5 {[%clk 00:08:44]} {[%emt
00:00:31]} Kf6 {[%clk 00:05:19]} {[%emt 00:05:35]} 51. Rxb5 {[%clk 00:08:10]}
{[%emt 00:01:04]} Ke6 {[%clk 00:04:56]} {[%emt 00:00:53]} 52. a4 {[%clk
00:08:28]} {[%emt 00:00:12]} Kd6 {[%clk 00:03:32]} {[%emt 00:01:54]} 53. Rxf5
{[%clk 00:07:47]} {[%emt 00:01:11]} Rb8 {[%clk 00:03:33]} {[%emt 00:00:29]} 54.
b5 {[%clk 00:02:33]} {[%emt 00:05:44]} Ra8 {[%clk 00:03:53]} {[%emt 00:00:11]}
55. Rf6+ {[%clk 00:02:57]} {[%emt 00:00:06]} Kc7 {[%clk 00:03:34]} {[%emt
00:00:49]} 56. Rc6+ {[%clk 00:03:21]} {[%emt 00:00:05]} Kb7 {[%clk 00:04:00]}
{[%emt 00:00:04]} 57. Rc4 {[%clk 00:03:45]} {[%emt 00:00:05]} Kb6 {[%clk
00:02:46]} {[%emt 00:01:44]} 58. Ke4 {[%clk 00:04:08]} {[%emt 00:00:07]} Rd8
{[%clk 00:02:07]} {[%emt 00:01:10]} 59. Ke5 {[%clk 00:04:19]} {[%emt 00:00:19]}
Re8+ {[%clk 00:02:14]} {[%emt 00:00:23]} 60. Kd6 {[%clk 00:04:42]} {[%emt
00:00:07]} Rd8 {[%clk 00:02:40]} {[%emt 00:00:04]} 61. Ke7 {[%clk 00:05:05]}
{[%emt 00:00:07]} Rd1 {[%clk 00:02:37]} {[%emt 00:00:33]} 62. Rc6+ {[%clk
00:05:18]} {[%emt 00:00:17]} Kb7 {[%clk 00:02:07]} {[%emt 00:01:00]} 63. a5
{[%clk 00:05:34]} {[%emt 00:00:15]} Rd5 {[%clk 00:02:03]} {[%emt 00:00:34]} 64.
Rb6+ {[%clk 00:05:49]} {[%emt 00:00:14]} Kc7 {[%clk 00:02:16]} {[%emt
00:00:18]} 65. Ke6 {[%clk 00:06:01]} {[%emt 00:00:18]} Rc5 {[%clk 00:02:26]}
{[%emt 00:00:20]} 66. Kf6 {[%clk 00:06:17]} {[%emt 00:00:14]} Rd5 {[%clk
00:02:12]} {[%emt 00:00:44]} 67. Ke7 {[%clk 00:06:15]} {[%emt 00:00:32]} Rc5
{[%clk 00:02:28]} {[%emt 00:00:14]} 68. Ke6 {[%clk 00:06:39]} {[%emt 00:00:06]}
Rh5 {[%clk 00:02:04]} {[%emt 00:00:54]} 69. Kf7 {[%clk 00:04:38]} {[%emt
00:02:31]} Rc5 {[%clk 00:02:00]} {[%emt 00:00:42]} 70. Ke6 {[%clk 00:03:38]}
{[%emt 00:01:30]} Rh5 {[%clk 00:01:48]} {[%emt 00:00:42]} 71. Rc6+ {[%clk
00:04:04]} {[%emt 00:00:04]} Kb7 {[%clk 00:01:48]} {[%emt 00:00:30]} 72. a6+
{[%clk 00:04:20]} {[%emt 00:00:13]} Ka7 {[%clk 00:01:31]} {[%emt 00:00:47]} 73.
Rc7+ {[%clk 00:04:44]} {[%emt 00:00:06]} Kb8 {[%clk 00:01:46]} {[%emt
00:00:15]} 74. Rb7+ {[%clk 00:05:11]} {[%emt 00:00:03]} Ka8 {[%clk 00:01:43]}
{[%emt 00:00:34]} 75. Kd6 {[%clk 00:05:07]} {[%emt 00:00:34]} Rh6+ {[%clk
00:02:01]} {[%emt 00:00:12]} 76. Kc5 {[%clk 00:04:41]} {[%emt 00:00:55]} Rc6+
{[%clk 00:01:40]} {[%emt 00:00:50]} 77. Kb4 {[%clk 00:04:52]} {[%emt 00:00:20]}
Rc4+ {[%clk 00:02:06]} {[%emt 00:00:04]} 78. Kb3 {[%clk 00:04:28]} {[%emt
00:00:53]} Rc3+ {[%clk 00:02:27]} {[%emt 00:00:07]} 79. Ka4 {[%clk 00:04:49]}
{[%emt 00:00:11]} Ra3+ {[%clk 00:02:49]} {[%emt 00:00:07]} 80. Kb4 {[%clk
00:05:11]} {[%emt 00:00:09]} Ra4+ {[%clk 00:02:56]} {[%emt 00:00:24]} 81. Kc5
{[%clk 00:05:26]} {[%emt 00:00:14]} Rc4+ {[%clk 00:03:13]} {[%emt 00:00:13]} 82.
Kd6 {[%clk 00:05:39]} {[%emt 00:00:18]} Rc6+ {[%clk 00:03:17]} {[%emt
00:00:26]} 83. Ke7 {[%clk 00:05:47]} {[%emt 00:00:21]} Re6+ {[%clk 00:03:23]}
{[%emt 00:00:25]} 84. Kd8 {[%clk 00:06:05]} {[%emt 00:00:11]} Re8 {[%clk
00:03:39]} {[%emt 00:00:14]} 85. Kxe8 {[%clk 00:05:54]} {[%emt 00:00:41]}
1/2-1/2

[Event "NJSK 2018 Jeugd C"]
[Site "Assen, Netherlands"]
[Date "2018.05.03"]
[Round "7.9"]
[White "Van Foreest, Nanne"]
[Black "Van der Schaaf, Tristan"]
[Result "0-1"]
[TimeControl "40/90m+30sec/move"]
[WhiteElo "1482"]
[BlackElo "1647"]

1. e4 {[%clk 01:30:49]} {[%emt 00:00:11]} c6 {[%clk 01:30:53]} {[%emt
00:00:06]} 2. c4 {[%clk 01:31:14]} {[%emt 00:00:06]} d5 {[%clk 01:31:11]}
{[%emt 00:00:11]} 3. exd5 {[%clk 01:31:41]} {[%emt 00:00:04]} cxd5 {[%clk
01:31:32]} {[%emt 00:00:08]} 4. cxd5 {[%clk 01:32:09]} {[%emt 00:00:03]} Qxd5
{[%clk 01:31:13]} {[%emt 00:00:49]} 5. Nc3 {[%clk 01:32:31]} {[%emt 00:00:08]}
Qd8 {[%clk 01:31:01]} {[%emt 00:00:41]} 6. Nf3 {[%clk 01:32:53]} {[%emt
00:00:09]} Nf6 {[%clk 01:31:22]} {[%emt 00:00:09]} 7. d4 {[%clk 01:33:19]}
{[%emt 00:00:04]} e6 {[%clk 01:31:29]} {[%emt 00:00:23]} 8. Bg5 {[%clk
01:33:41]} {[%emt 00:00:07]} Be7 {[%clk 01:30:23]} {[%emt 00:01:36]} 9. Bd3
{[%clk 01:33:17]} {[%emt 00:00:54]} Nc6 {[%clk 01:25:55]} {[%emt 00:04:58]} 10.
O-O {[%clk 01:33:40]} {[%emt 00:00:08]} O-O {[%clk 01:22:37]} {[%emt 00:03:48]}
11. Rc1 {[%clk 01:31:13]} {[%emt 00:02:57]} Nd5 {[%clk 01:15:43]} {[%emt
00:07:24]} 12. Bxe7 {[%clk 01:29:45]} {[%emt 00:01:58]} Ncxe7 {[%clk 01:15:38]}
{[%emt 00:00:34]} 13. Ne4 {[%clk 01:28:06]} {[%emt 00:02:09]} Bd7 {[%clk
01:11:44]} {[%emt 00:04:25]} 14. Ne5 {[%clk 01:12:34]} {[%emt 00:16:02]} Bc6
{[%clk 00:55:35]} {[%emt 00:16:39]} 15. Ng5 {[%clk 01:09:19]} {[%emt 00:03:44]}
g6 {[%clk 00:53:41]} {[%emt 00:02:24]} 16. Qf3 {[%clk 01:07:49]} {[%emt
00:02:00]} Nf5 {[%clk 00:51:46]} {[%emt 00:02:25]} 17. Ngxf7 {[%clk 01:04:20]}
{[%emt 00:03:59]} Rxf7 {[%clk 00:50:38]} {[%emt 00:01:37]} 18. Nxf7 {[%clk
01:04:42]} {[%emt 00:00:09]} Kxf7 {[%clk 00:50:46]} {[%emt 00:00:22]} 19. g4
{[%clk 01:04:49]} {[%emt 00:00:23]} Nb4 {[%clk 00:48:31]} {[%emt 00:02:45]} 20.
Rxc6 {[%clk 01:03:37]} {[%emt 00:01:42]} Nxc6 {[%clk 00:46:11]} {[%emt
00:02:51]} 21. gxf5 {[%clk 01:03:57]} {[%emt 00:00:10]} Qg5+ {[%clk 00:44:09]}
{[%emt 00:02:31]} 22. Kh1 {[%clk 01:03:53]} {[%emt 00:00:35]} exf5 {[%clk
00:39:47]} {[%emt 00:04:51]} 23. Qd5+ {[%clk 01:03:14]} {[%emt 00:01:09]} Kf8
{[%clk 00:39:22]} {[%emt 00:00:55]} 24. Bc4 {[%clk 01:03:13]} {[%emt 00:00:31]}
Nd8 {[%clk 00:28:22]} {[%emt 00:11:30]} 25. Qg8+ {[%clk 01:02:11]} {[%emt
00:01:32]} Ke7 {[%clk 00:28:50]} {[%emt 00:00:02]} 26. Re1+ {[%clk 01:02:27]}
{[%emt 00:00:14]} Kd7 {[%clk 00:27:45]} {[%emt 00:01:36]} 27. Qe8+ {[%clk
01:02:45]} {[%emt 00:00:11]} Kc8 {[%clk 00:24:43]} {[%emt 00:03:31]} 28. Be6+
{[%clk 01:02:47]} {[%emt 00:00:29]} Kb8 {[%clk 00:24:23]} {[%emt 00:00:51]} 29.
f4 {[%clk 00:59:14]} {[%emt 00:04:02]} Qh4 {[%clk 00:20:45]} {[%emt 00:04:08]}
30. Rc1 {[%clk 00:59:28]} {[%emt 00:00:16]} a6 {[%clk 00:21:02]} {[%emt
00:00:14]} 31. Qd7 {[%clk 00:55:16]} {[%emt 00:04:41]} Ka7 {[%clk 00:16:57]}
{[%emt 00:04:35]} 32. Qd6 {[%clk 00:52:39]} {[%emt 00:03:07]} Nxe6 {[%clk
00:16:03]} {[%emt 00:01:24]} 33. Qxe6 {[%clk 00:52:31]} {[%emt 00:00:38]} Qxf4
{[%clk 00:16:25]} {[%emt 00:00:08]} 34. Qc4 {[%clk 00:51:24]} {[%emt 00:01:37]}
Rd8 {[%clk 00:15:21]} {[%emt 00:01:34]} 35. Qc5+ {[%clk 00:51:17]} {[%emt
00:00:38]} Ka8 {[%clk 00:15:08]} {[%emt 00:00:42]} 36. Rc4 {[%clk 00:51:11]}
{[%emt 00:00:35]} Qf1 {[%clk 00:12:51]} {[%emt 00:02:16]} 0-1

[Event "NJSK 2018 Jeugd C"]
[Site "Assen, Netherlands"]
[Date "2018.05.03"]
[Round "7.10"]
[White "Franke, Daniel"]
[Black "Catalan, Ciro"]
[Result "1-0"]
[TimeControl "40/90m+30sec/move"]
[WhiteElo "1298"]
[BlackElo "1503"]

1. d4 {[%clk 01:30:59]} {[%emt 01:48:33]} d5 {[%clk 01:30:56]} {[%emt
00:00:04]} 2. c4 {[%clk 01:31:28]} c6 {[%clk 01:31:21]} {[%emt 00:00:05]} 3.
Nf3 {[%clk 01:31:55]} {[%emt 00:00:03]} Nf6 {[%clk 01:31:44]} {[%emt 00:00:07]}
4. Nc3 {[%clk 01:32:22]} {[%emt 00:00:04]} Bf5 {[%clk 01:31:55]} {[%emt
00:00:18]} 5. Bf4 {[%clk 01:32:41]} {[%emt 00:00:11]} e6 {[%clk 01:32:02]}
{[%emt 00:00:23]} 6. e3 {[%clk 01:33:07]} {[%emt 00:00:04]} Nbd7 {[%clk
01:24:41]} {[%emt 00:07:52]} 7. Bd3 {[%clk 01:33:15]} {[%emt 00:00:22]} Bxd3
{[%clk 01:23:31]} {[%emt 00:01:40]} 8. Qxd3 {[%clk 01:33:32]} {[%emt 00:00:12]}
Nh5 {[%clk 01:13:33]} {[%emt 00:10:28]} 9. Bg3 {[%clk 01:28:02]} {[%emt
00:05:59]} Nxg3 {[%clk 01:10:51]} {[%emt 00:03:13]} 10. fxg3 {[%clk 01:28:17]}
{[%emt 00:00:15]} dxc4 {[%clk 00:53:34]} {[%emt 00:17:48]} 11. Qxc4 {[%clk
01:26:17]} {[%emt 00:02:30]} Nf6 {[%clk 00:53:41]} {[%emt 00:00:23]} 12. O-O
{[%clk 01:23:25]} {[%emt 00:03:21]} Be7 {[%clk 00:47:38]} {[%emt 00:06:33]} 13.
e4 {[%clk 00:58:59]} {[%emt 00:24:56]} O-O {[%clk 00:42:04]} {[%emt 00:06:04]}
14. Ne5 {[%clk 00:57:27]} {[%emt 00:02:03]} Rc8 {[%clk 00:27:51]} {[%emt
00:14:41]} 15. Rad1 {[%clk 00:50:56]} {[%emt 00:07:02]} b5 {[%clk 00:18:46]}
{[%emt 00:09:36]} 16. Qb3 {[%clk 00:42:45]} {[%emt 00:08:40]} b4 {[%clk
00:16:17]} {[%emt 00:02:59]} 17. Ne2 {[%clk 00:33:30]} {[%emt 00:09:46]} Nxe4
{[%clk 00:15:23]} {[%emt 00:01:23]} 18. Qa4 {[%clk 00:32:38]} {[%emt 00:01:22]}
Qc7 {[%clk 00:10:40]} {[%emt 00:05:13]} 19. Rc1 {[%clk 00:22:45]} {[%emt
00:10:24]} c5 {[%clk 00:10:10]} {[%emt 00:00:59]} 20. Qc2 {[%clk 00:12:25]}
{[%emt 00:10:49]} Qb7 {[%clk 00:09:06]} {[%emt 00:01:34]} 21. Qa4 {[%clk
00:09:56]} {[%emt 00:02:58]} f6 {[%clk 00:03:32]} {[%emt 00:06:06]} 22. Nd7
{[%clk 00:06:12]} {[%emt 00:04:14]} Rfd8 {[%clk 00:02:39]} {[%emt 00:01:22]} 23.
Nxc5 {[%clk 00:06:35]} {[%emt 00:00:08]} Nxc5 {[%clk 00:02:24]} {[%emt
00:00:45]} 24. dxc5 {[%clk 00:06:49]} {[%emt 00:00:16]} Bxc5+ {[%clk 00:02:44]}
{[%emt 00:00:10]} 25. Kh1 {[%clk 00:07:08]} {[%emt 00:00:11]} Be7 {[%clk
00:02:42]} {[%emt 00:00:32]} 26. Rxc8 {[%clk 00:05:31]} {[%emt 00:02:08]} Rxc8
{[%clk 00:03:08]} {[%emt 00:00:03]} 27. Nf4 {[%clk 00:05:40]} {[%emt 00:00:21]}
Kf7 {[%clk 00:02:44]} {[%emt 00:00:54]} 28. Re1 {[%clk 00:04:21]} {[%emt
00:01:49]} Qb6 {[%clk 00:02:13]} {[%emt 00:00:57]} 29. Qd7 {[%clk 00:03:35]}
{[%emt 00:01:20]} Rc6 {[%clk 00:00:47]} {[%emt 00:01:57]} 30. Nd5 {[%clk
00:03:45]} {[%emt 00:00:19]} exd5 {[%clk 00:00:33]} {[%emt 00:00:43]} 31. Rxe7+
{[%clk 00:04:10]} {[%emt 00:00:05]} Kg6 {[%clk 00:00:44]} {[%emt 00:00:19]} 32.
Rxg7+ {[%clk 00:04:31]} {[%emt 00:00:10]} 1-0

[Event "NJSK 2018 Jeugd C"]
[Site "Assen, Netherlands"]
[Date "2018.05.03"]
[Round "7.11"]
[White "Albers, Sasa"]
[Black "Torensma, Christian"]
[Result "1-0"]
[TimeControl "40/90m+30sec/move"]
[WhiteElo "1336"]
[BlackElo "1455"]

1. e4 {[%clk 01:30:59]} {[%emt 00:00:01]} e6 {[%clk 01:30:59]} {[%emt
00:00:01]} 2. d4 {[%clk 01:31:23]} {[%emt 00:00:06]} d5 {[%clk 01:31:25]}
{[%emt 00:00:04]} 3. exd5 {[%clk 01:31:44]} {[%emt 00:00:09]} exd5 {[%clk
01:31:50]} {[%emt 00:00:05]} 4. Bd3 {[%clk 01:31:57]} {[%emt 00:00:16]} Nf6
{[%clk 01:32:14]} {[%emt 00:00:06]} 5. h3 {[%clk 01:32:05]} {[%emt 00:00:23]}
Bd6 {[%clk 01:32:31]} {[%emt 00:00:12]} 6. Nf3 {[%clk 01:32:18]} {[%emt
00:00:18]} O-O {[%clk 01:32:43]} {[%emt 00:00:17]} 7. O-O {[%clk 01:32:42]}
{[%emt 00:00:06]} Be6 {[%clk 01:32:45]} {[%emt 00:00:29]} 8. Be3 {[%clk
01:32:48]} {[%emt 00:00:24]} Re8 {[%clk 01:32:49]} {[%emt 00:00:25]} 9. Re1
{[%clk 01:32:38]} {[%emt 00:00:40]} Nc6 {[%clk 01:32:36]} {[%emt 00:00:43]} 10.
c3 {[%clk 01:32:48]} {[%emt 00:00:21]} h6 {[%clk 01:31:31]} {[%emt 00:01:34]}
11. Qc1 {[%clk 01:30:47]} {[%emt 00:02:31]} Qd7 {[%clk 01:30:10]} {[%emt
00:01:52]} 12. Bf4 {[%clk 01:23:06]} {[%emt 00:08:10]} Bxf4 {[%clk 01:20:23]}
{[%emt 00:10:17]} 13. Qxf4 {[%clk 01:23:21]} {[%emt 00:00:15]} Qd8 {[%clk
01:13:18]} {[%emt 00:07:35]} 14. g4 {[%clk 01:17:04]} {[%emt 00:06:47]} Nh7
{[%clk 01:00:24]} {[%emt 00:13:25]} 15. Nbd2 {[%clk 01:07:37]} {[%emt
00:09:56]} g5 {[%clk 01:00:29]} {[%emt 00:00:25]} 16. Qg3 {[%clk 01:07:46]}
{[%emt 00:00:20]} Rc8 {[%clk 00:55:24]} {[%emt 00:05:36]} 17. Ne5 {[%clk
01:06:56]} {[%emt 00:01:20]} Nxe5 {[%clk 00:52:51]} {[%emt 00:03:03]} 18. Rxe5
{[%clk 01:06:55]} {[%emt 00:00:30]} Qd6 {[%clk 00:47:52]} {[%emt 00:05:30]} 19.
Qf3 {[%clk 00:51:04]} {[%emt 00:16:21]} c6 {[%clk 00:39:56]} {[%emt 00:08:27]}
20. Nf1 {[%clk 00:48:48]} {[%emt 00:02:45]} Qd8 {[%clk 00:29:25]} {[%emt
00:11:01]} 21. Bxh7+ {[%clk 00:38:30]} {[%emt 00:10:47]} Kxh7 {[%clk 00:29:31]}
{[%emt 00:00:25]} 22. Rae1 {[%clk 00:38:37]} {[%emt 00:00:22]} Rg8 {[%clk
00:19:31]} {[%emt 00:10:31]} 23. Ng3 {[%clk 00:37:27]} {[%emt 00:01:40]} Rg6
{[%clk 00:18:33]} {[%emt 00:01:28]} 24. Nh5 {[%clk 00:35:50]} {[%emt 00:02:07]}
Rc7 {[%clk 00:17:15]} {[%emt 00:01:48]} 25. Qd3 {[%clk 00:29:17]} {[%emt
00:07:03]} Qc8 {[%clk 00:14:22]} {[%emt 00:03:23]} 26. f4 {[%clk 00:17:33]}
{[%emt 00:12:14]} Bxg4 {[%emt 00:03:18]} 27. Nf6 1-0

[Event "NJSK 2018 Jeugd C"]
[Site "Assen, Netherlands"]
[Date "2018.05.03"]
[Round "7.12"]
[White "Roebers, Eline"]
[Black "Tiggelman, Vincent"]
[Result "1-0"]
[TimeControl "40/90m+30sec/move"]
[WhiteElo "1961"]
[BlackElo "1394"]

1. e4 {[%clk 01:30:57]} {[%emt 00:00:02]} c6 {[%clk 01:30:55]} {[%emt
00:00:05]} 2. Nc3 {[%clk 01:31:21]} {[%emt 00:00:07]} d5 {[%clk 01:31:19]}
{[%emt 00:00:06]} 3. Nf3 {[%clk 01:31:21]} {[%emt 00:00:29]} dxe4 {[%clk
01:31:19]} {[%emt 00:00:31]} 4. Nxe4 {[%clk 01:31:27]} {[%emt 00:00:23]} Bf5
{[%clk 01:31:36]} {[%emt 00:00:13]} 5. Ng3 {[%clk 01:26:16]} {[%emt 00:05:41]}
Bg6 {[%clk 01:31:51]} {[%emt 00:00:16]} 6. h4 {[%clk 01:25:08]} {[%emt
00:01:38]} h6 {[%clk 01:32:12]} {[%emt 00:00:09]} 7. Ne5 {[%clk 01:23:39]}
{[%emt 00:01:58]} Bh7 {[%clk 01:29:32]} {[%emt 00:03:10]} 8. Qf3 {[%clk
01:19:59]} {[%emt 00:04:11]} Qd5 {[%clk 01:21:33]} {[%emt 00:08:28]} 9. Qxd5
{[%clk 01:20:12]} {[%emt 00:00:17]} cxd5 {[%clk 01:21:54]} {[%emt 00:00:09]} 10.
Bb5+ {[%clk 01:20:39]} {[%emt 00:00:03]} Nc6 {[%clk 01:06:40]} {[%emt
00:15:44]} 11. Nxc6 {[%clk 01:21:05]} {[%emt 00:00:05]} a6 {[%clk 01:06:54]}
{[%emt 00:00:15]} 12. Ba4 {[%clk 01:21:24]} {[%emt 00:00:11]} b5 {[%clk
01:06:41]} {[%emt 00:00:44]} 13. Bb3 {[%clk 01:21:49]} {[%emt 00:00:05]} e6
{[%clk 01:06:07]} {[%emt 00:01:03]} 14. Ne5 {[%clk 01:18:56]} {[%emt 00:03:23]}
Nf6 {[%clk 01:05:26]} {[%emt 00:01:12]} 15. O-O {[%clk 01:17:55]} {[%emt
00:01:31]} Bd6 {[%clk 01:05:16]} {[%emt 00:00:38]} 16. d4 {[%clk 01:16:53]}
{[%emt 00:01:33]} O-O {[%clk 01:05:05]} {[%emt 00:00:40]} 17. c3 {[%clk
01:13:50]} {[%emt 00:03:34]} Rac8 {[%clk 00:53:21]} {[%emt 00:12:14]} 18. Be3
{[%clk 01:08:37]} {[%emt 00:05:43]} Rfd8 {[%clk 00:42:06]} {[%emt 00:11:45]} 19.
Rac1 {[%clk 01:04:06]} {[%emt 00:05:01]} Bf8 {[%emt 00:06:24]} 1-0